Workbook

Sheet Disclaimer
B2: Copyright © 2019 Saxo Bank A/S Licensed under the Apache License, Version 2.0 (the "License"); You may not use this file except in compliance with the License. You may obtain a copy of the License at http://www.apache.org/licenses/LICENSE-2.0 Unless required by applicable law or agreed to in writing, software distributed under the License is distributed on an "AS IS" BASIS, WITHOUT WARRANTIES OR CONDITIONS OF ANY KIND, either express or implied. See the License for the specific language governing permissions and limitations under the License.

Sheet Chart
A1: OpenAPI Live Chart
A3: UIC (Stock only) | B3: 21
A4: AssetType | B4: FxSpot
A5: Symbol | B5: =_xll.OpenAPIGet("/openapi/ref/v1/instruments/details/?Uics="&Uic&"&AssetTypes="&AssetType&"&FieldGroups=","Symbol") -> EURUSD
A6: Horizon (min) | B6: 1
A7: Datapoints (5-100) | B7: 60
A9: Bollinger Bands
A10: Look-back window | B10: 20
A11: Std. deviations | B11: 2

Sheet data
A1: Time (UTC) | B1: Open | C1: High | D1: Low | E1: Close | F1: Current | G1: SMA-20 | H1: B-high | I1: B-low | J1: STD-20 | L1: Time (UTC) | M1: Open | N1: High | O1: Low | P1: Close
A2: 14/05/2019 06:47:00 | B2: 1.12385 | C2: 1.12385 | D2: 1.1238 | E2: 1.1238 | F2: =$E$61 -> 1.1231 | L2: 14/05/2019 07:46:00 | M2: 1.1231 | N2: 1.12315 | O2: 1.12305 | P2: 1.1231
A3: 14/05/2019 06:48:00 | B3: 1.12385 | C3: 1.1239 | D3: 1.1238 | E3: 1.1238 | F3: 1.1231
A4: 14/05/2019 06:49:00 | B4: 1.1238 | C4: 1.12395 | D4: 1.1238 | E4: 1.12395 | F4: 1.1231
A5: 14/05/2019 06:50:00 | B5: 1.124 | C5: 1.12405 | D5: 1.12395 | E5: 1.12405 | F5: 1.1231
A6: 14/05/2019 06:51:00 | B6: 1.12405 | C6: 1.12405 | D6: 1.12395 | E6: 1.124 | F6: 1.1231
A7: 14/05/2019 06:52:00 | B7: 1.124 | C7: 1.12415 | D7: 1.124 | E7: 1.1241 | F7: 1.1231
A8: 14/05/2019 06:53:00 | B8: 1.1241 | C8: 1.1241 | D8: 1.124 | E8: 1.124 | F8: 1.1231
A9: 14/05/2019 06:54:00 | B9: 1.124 | C9: 1.12405 | D9: 1.1239 | E9: 1.1239 | F9: 1.1231
A10: 14/05/2019 06:55:00 | B10: 1.12385 | C10: 1.12385 | D10: 1.1238 | E10: 1.12385 | F10: 1.1231
A11: 14/05/2019 06:56:00 | B11: 1.12385 | C11: 1.12385 | D11: 1.12375 | E11: 1.12375 | F11: 1.1231
A12: 14/05/2019 06:57:00 | B12: 1.1237 | C12: 1.12375 | D12: 1.12355 | E12: 1.12355 | F12: 1.1231
A13: 14/05/2019 06:58:00 | B13: 1.1235 | C13: 1.1235 | D13: 1.1232 | E13: 1.1233 | F13: 1.1231
A14: 14/05/2019 06:59:00 | B14: 1.12325 | C14: 1.1233 | D14: 1.1232 | E14: 1.1233 | F14: 1.1231
A15: 14/05/2019 07:00:00 | B15: 1.1233 | C15: 1.12335 | D15: 1.1232 | E15: 1.1233 | F15: 1.1231
A16: 14/05/2019 07:01:00 | B16: 1.12325 | C16: 1.12325 | D16: 1.1229 | E16: 1.1229 | F16: 1.1231
A17: 14/05/2019 07:02:00 | B17: 1.12295 | C17: 1.12305 | D17: 1.12295 | E17: 1.12305 | F17: 1.1231
A18: 14/05/2019 07:03:00 | B18: 1.123 | C18: 1.1232 | D18: 1.123 | E18: 1.1232 | F18: 1.1231
A19: 14/05/2019 07:04:00 | B19: 1.1232 | C19: 1.1234 | D19: 1.1232 | E19: 1.1234 | F19: 1.1231
A20: 14/05/2019 07:05:00 | B20: 1.12345 | C20: 1.12345 | D20: 1.12335 | E20: 1.12335 | F20: 1.1231
A21: 14/05/2019 07:06:00 | B21: 1.1234 | C21: 1.1234 | D21: 1.12335 | E21: 1.12335 | F21: 1.1231 | G21: =AVERAGE(E2:E21) -> 1.123595 | H21: =G21+multiplier*data!J21 -> 1.124307671 | I21: =G21-multiplier*data!J21 -> 1.122882329 | J21: =_xlfn.STDEV.P(E2:E21) -> 0.0003563355161
A22: 14/05/2019 07:07:00 | B22: 1.12335 | C22: 1.12355 | D22: 1.12335 | E22: 1.1235 | F22: 1.1231 | G22: =AVERAGE(E3:E22) -> 1.12358 | H22: =G22+multiplier*data!J22 -> 1.12428739 | I22: =G22-multiplier*data!J22 -> 1.12287261 | J22: =_xlfn.STDEV.P(E3:E22) -> 0.0003536947837
A23: 14/05/2019 07:08:00 | B23: 1.12355 | C23: 1.1237 | D23: 1.1235 | E23: 1.1237 | F23: 1.1231 | G23: 1.123575 | H23: =G23+multiplier*data!J23 -> 1.124277496 | I23: =G23-multiplier*data!J23 -> 1.122872504 | J23: 0.0003512477758
A24: 14/05/2019 07:09:00 | B24: 1.12365 | C24: 1.1237 | D24: 1.1235 | E24: 1.12355 | F24: 1.1231 | G24: 1.123555 | H24: =G24+multiplier*data!J24 -> 1.124236102 | I24: =G24-multiplier*data!J24 -> 1.122873898 | J24: 0.0003405510241
A25: 14/05/2019 07:10:00 | B25: 1.1235 | C25: 1.12355 | D25: 1.1235 | E25: 1.1235 | F25: 1.1231 | G25: 1.1235275 | H25: =G25+multiplier*data!J25 -> 1.124169742 | I25: =G25-multiplier*data!J25 -> 1.122885258 | J25: 0.0003211210831
A26: 14/05/2019 07:11:00 | B26: 1.12345 | C26: 1.1235 | D26: 1.12345 | E26: 1.12345 | F26: 1.1231 | G26: 1.1235 | H26: =G26+multiplier*data!J26 -> 1.124104979 | I26: =G26-multiplier*data!J26 -> 1.122895021 | J26: 0.0003024896692
A27: 14/05/2019 07:12:00 | B27: 1.1235 | C27: 1.12355 | D27: 1.12345 | E27: 1.1235 | F27: 1.1231 | G27: 1.12347 | H27: =G27+multiplier*data!J27 -> 1.124008888 | I27: =G27-multiplier*data!J27 -> 1.122931112 | J27: 0.0002694438717
A28: 14/05/2019 07:13:00 | B28: 1.12355 | C28: 1.12365 | D28: 1.12355 | E28: 1.1236 | F28: 1.1231 | G28: 1.12345 | H28: =G28+multiplier*data!J28 -> 1.123935798 | I28: =G28-multiplier*data!J28 -> 1.122964202 | J28: 0.000242899156
A29: 14/05/2019 07:14:00 | B29: 1.12365 | C29: 1.12385 | D29: 1.12365 | E29: 1.1238 | F29: 1.1231 | G29: 1.123445 | H29: =G29+multiplier*data!J29 -> 1.123913935 | I29: =G29-multiplier*data!J29 -> 1.122976065 | J29: 0.0002344674818
A30: 14/05/2019 07:15:00 | B30: 1.12385 | C30: 1.12405 | D30: 1.12385 | E30: 1.12405 | F30: 1.1231 | G30: 1.123455 | H30: =G30+multiplier*data!J30 -> 1.123964804 | I30: =G30-multiplier*data!J30 -> 1.122945196 | J30: 0.0002549019419
A31: 14/05/2019 07:16:00 | B31: 1.12405 | C31: 1.12405 | D31: 1.1239 | E31: 1.1239 | F31: 1.1231 | G31: 1.1234625 | H31: =G31+multiplier*data!J31 -> 1.123993419 | I31: =G31-multiplier*data!J31 -> 1.122931581 | J31: 0.0002654595073
A32: 14/05/2019 07:17:00 | B32: 1.12385 | C32: 1.124 | D32: 1.12385 | E32: 1.12395 | F32: 1.1231 | G32: 1.1234825 | H32: =G32+multiplier*data!J32 -> 1.124053705 | I32: =G32-multiplier*data!J32 -> 1.122911295 | J32: 0.0002856024335
A33: 14/05/2019 07:18:00 | B33: 1.1239 | C33: 1.1241 | D33: 1.1239 | E33: 1.1241 | F33: 1.1231 | G33: 1.1235225 | H33: =G33+multiplier*data!J33 -> 1.124146579 | I33: =G33-multiplier*data!J33 -> 1.122898421 | J33: 0.0003120396609
A34: 14/05/2019 07:19:00 | B34: 1.1241 | C34: 1.1241 | D34: 1.124 | E34: 1.124 | F34: 1.1231 | G34: 1.1235575 | H34: =G34+multiplier*data!J34 -> 1.124205786 | I34: =G34-multiplier*data!J34 -> 1.122909214 | J34: 0.0003241431011
A35: 14/05/2019 07:20:00 | B35: 1.12405 | C35: 1.1242 | D35: 1.124 | E35: 1.1242 | F35: 1.1231 | G35: 1.1236025 | H35: =G35+multiplier*data!J35 -> 1.124296384 | I35: =G35-multiplier*data!J35 -> 1.122908616 | J35: 0.000346941998
A36: 14/05/2019 07:21:00 | B36: 1.1242 | C36: 1.1242 | D36: 1.12395 | E36: 1.124 | F36: 1.1231 | G36: 1.1236575 | H36: =G36+multiplier*data!J36 -> 1.124291752 | I36: =G36-multiplier*data!J36 -> 1.123023248 | J36: 0.0003171257637
A37: 14/05/2019 07:22:00 | B37: 1.12395 | C37: 1.12415 | D37: 1.12395 | E37: 1.1241 | F37: 1.1231 | G37: 1.12371 | H37: =G37+multiplier*data!J37 -> 1.12430716 | I37: =G37-multiplier*data!J37 -> 1.12311284 | J37: 0.0002985799725
A38: 14/05/2019 07:23:00 | B38: 1.1241 | C38: 1.1241 | D38: 1.124 | E38: 1.12405 | F38: 1.1231 | G38: 1.1237525 | H38: =G38+multiplier*data!J38 -> 1.124318605 | I38: =G38-multiplier*data!J38 -> 1.123186395 | J38: 0.000283052557
A39: 14/05/2019 07:24:00 | B39: 1.124 | C39: 1.124 | D39: 1.12395 | E39: 1.124 | F39: 1.1231 | G39: 1.1237825 | H39: =G39+multiplier*data!J39 -> 1.124334111 | I39: =G39-multiplier*data!J39 -> 1.123230889 | J39: 0.0002758056381
A40: 14/05/2019 07:25:00 | B40: 1.124 | C40: 1.124 | D40: 1.12395 | E40: 1.12395 | F40: 1.1231 | G40: 1.1238125 | H40: =G40+multiplier*data!J40 -> 1.124331032 | I40: =G40-multiplier*data!J40 -> 1.123293968 | J40: 0.0002592657903
A41: 14/05/2019 07:26:00 | B41: 1.1239 | C41: 1.1239 | D41: 1.1239 | E41: 1.1239 | F41: 1.1231 | G41: 1.12384 | H41: =G41+multiplier*data!J41 -> 1.12431392 | I41: =G41-multiplier*data!J41 -> 1.12336608 | J41: 0.0002369599122
A42: 14/05/2019 07:27:00 | B42: 1.1239 | C42: 1.1239 | D42: 1.12385 | E42: 1.12385 | F42: 1.1231 | G42: 1.1238575 | H42: =G42+multiplier*data!J42 -> 1.124305021 | I42: =G42-multiplier*data!J42 -> 1.123409979 | J42: 0.0002237604746
A43: 14/05/2019 07:28:00 | B43: 1.12385 | C43: 1.12385 | D43: 1.12385 | E43: 1.12385 | F43: 1.1231 | G43: 1.123865 | H43: =G43+multiplier*data!J43 -> 1.124306701 | I43: =G43-multiplier*data!J43 -> 1.123423299 | J43: 0.0002208506283
A44: 14/05/2019 07:29:00 | B44: 1.1238 | C44: 1.1238 | D44: 1.1237 | E44: 1.12375 | F44: 1.1231 | G44: 1.123875 | H44: =G44+multiplier*data!J44 -> 1.124296307 | I44: =G44-multiplier*data!J44 -> 1.123453693 | J44: 0.0002106537443
A45: 14/05/2019 07:30:00 | B45: 1.12375 | C45: 1.1238 | D45: 1.12375 | E45: 1.12375 | F45: 1.1231 | G45: 1.1238875 | H45: =G45+multiplier*data!J45 -> 1.124277211 | I45: =G45-multiplier*data!J45 -> 1.123497789 | J45: 0.0001948557159
A46: 14/05/2019 07:31:00 | B46: 1.12375 | C46: 1.12375 | D46: 1.12355 | E46: 1.1236 | F46: 1.1231 | G46: 1.123895 | H46: =G46+multiplier*data!J46 -> 1.124255416 | I46: =G46-multiplier*data!J46 -> 1.123534584 | J46: 0.0001802082129
A47: 14/05/2019 07:32:00 | B47: 1.1236 | C47: 1.12375 | D47: 1.1235 | E47: 1.1237 | F47: 1.1231 | G47: 1.123905 | H47: =G47+multiplier*data!J47 -> 1.124230423 | I47: =G47-multiplier*data!J47 -> 1.123579577 | J47: 0.000162711401
A48: 14/05/2019 07:33:00 | B48: 1.1237 | C48: 1.1237 | D48: 1.1235 | E48: 1.1236 | F48: 1.1231 | G48: 1.123905 | H48: =G48+multiplier*data!J48 -> 1.124230423 | I48: =G48-multiplier*data!J48 -> 1.123579577 | J48: 0.000162711401
A49: 14/05/2019 07:34:00 | B49: 1.12365 | C49: 1.12365 | D49: 1.1234 | E49: 1.1235 | F49: 1.1231 | G49: 1.12389 | H49: =G49+multiplier*data!J49 -> 1.124258239 | I49: =G49-multiplier*data!J49 -> 1.123521761 | J49: 0.0001841195264
A50: 14/05/2019 07:35:00 | B50: 1.1235 | C50: 1.1236 | D50: 1.12345 | E50: 1.1236 | F50: 1.1231 | G50: 1.1238675 | H50: =G50+multiplier*data!J50 -> 1.12424865 | I50: =G50-multiplier*data!J50 -> 1.12348635 | J50: 0.0001905747885
A51: 14/05/2019 07:36:00 | B51: 1.12355 | C51: 1.12355 | D51: 1.12345 | E51: 1.12345 | F51: 1.1231 | G51: 1.123845 | H51: =G51+multiplier*data!J51 -> 1.124266782 | I51: =G51-multiplier*data!J51 -> 1.123423218 | J51: 0.0002108909671
A52: 14/05/2019 07:37:00 | B52: 1.12345 | C52: 1.1235 | D52: 1.1234 | E52: 1.1234 | F52: 1.1231 | G52: 1.1238175 | H52: =G52+multiplier*data!J52 -> 1.124278233 | I52: =G52-multiplier*data!J52 -> 1.123356767 | J52: 0.0002303665557
A53: 14/05/2019 07:38:00 | B53: 1.1234 | C53: 1.1235 | D53: 1.1233 | E53: 1.1234 | F53: 1.1231 | G53: 1.1237825 | H53: =G53+multiplier*data!J53 -> 1.124258184 | I53: =G53-multiplier*data!J53 -> 1.123306816 | J53: 0.0002378418592
A54: 14/05/2019 07:39:00 | B54: 1.12335 | C54: 1.12345 | D54: 1.1233 | E54: 1.1233 | F54: 1.1231 | G54: 1.1237475 | H54: =G54+multiplier*data!J54 -> 1.124255904 | I54: =G54-multiplier*data!J54 -> 1.123239096 | J54: 0.0002542021833
A55: 14/05/2019 07:40:00 | B55: 1.1233 | C55: 1.1233 | D55: 1.12315 | E55: 1.12325 | F55: 1.1231 | G55: 1.1237 | H55: =G55+multiplier*data!J55 -> 1.124207937 | I55: =G55-multiplier*data!J55 -> 1.123192063 | J55: 0.000253968502
A56: 14/05/2019 07:41:00 | B56: 1.12325 | C56: 1.12325 | D56: 1.1232 | E56: 1.1232 | F56: 1.1231 | G56: 1.12366 | H56: =G56+multiplier*data!J56 -> 1.124192541 | I56: =G56-multiplier*data!J56 -> 1.123127459 | J56: 0.0002662705391
A57: 14/05/2019 07:42:00 | B57: 1.1232 | C57: 1.12325 | D57: 1.1231 | E57: 1.1232 | F57: 1.1231 | G57: 1.123615 | H57: =G57+multiplier*data!J57 -> 1.124143299 | I57: =G57-multiplier*data!J57 -> 1.123086701 | J57: 0.0002641495788
A58: 14/05/2019 07:43:00 | B58: 1.1232 | C58: 1.12325 | D58: 1.1231 | E58: 1.12315 | F58: 1.1231 | G58: 1.12357 | H58: =G58+multiplier*data!J58 -> 1.124095738 | I58: =G58-multiplier*data!J58 -> 1.123044262 | J58: 0.0002628687886
A59: 14/05/2019 07:44:00 | B59: 1.1232 | C59: 1.12325 | D59: 1.1232 | E59: 1.12325 | F59: 1.1231 | G59: 1.1235325 | H59: =G59+multiplier*data!J59 -> 1.124036757 | I59: =G59-multiplier*data!J59 -> 1.123028243 | J59: 0.0002521284395
A60: 14/05/2019 07:45:00 | B60: 1.1232 | C60: 1.12325 | D60: 1.12315 | E60: 1.12315 | F60: 1.1231 | G60: 1.1234925 | H60: =G60+multiplier*data!J60 -> 1.123984714 | I60: =G60-multiplier*data!J60 -> 1.123000286 | J60: 0.0002461071921
A61: 14/05/2019 07:46:00 | B61: 1.1231 | C61: 1.12315 | D61: 1.12305 | E61: 1.1231 | F61: =$E$61 -> 1.1231 | G61: 1.1234525 | H61: =G61+multiplier*data!J61 -> 1.123935693 | I61: =G61-multiplier*data!J61 -> 1.122969307 | J61: 0.0002415962541
